[Event "CAN-op"]
[Site "Ottawa CAN"]
[Date "2026.07.16"]
[Round "8.6"]
[White "Cummings, David"]
[Black "Marchand, Calix"]
[Result "1/2-1/2"]
[ECO "D02"]
[WhiteElo "2233"]
[BlackElo "2181"]
[WhiteFideId "-1"]
[BlackFideId "-1"]
[PlyCount "130"]
[GameId "2332995607367449"]
[EventDate "2026.07.11"]
[EventType "swiss"]
[EventRounds "9"]
[EventCountry "CAN"]
[TimeControl "5400+30"]
[WhiteClock "0:01:49"]
[BlackClock "0:01:00"]

1. Nf3 {[%emt 0:00:06.94]} Nf6 {[%emt 0:04:59.94]} 2. c4 {[%emt 0:00:13]} e6 {[%emt 0:00:52]} 3. g3 {[%emt 0:00:16]} d5 {[%emt 0:00:30]} 4. Bg2 {[%emt 0:00:16]} Bd6 {[%emt 0:00:55]} 5. O-O {[%emt 0:00:56]} O-O {[%emt 0:00:39]} 6. d4 {[%emt 0:01:05]} Nc6 {[%emt 0:00:47]} 7. b3 {[%emt 0:01:42]} a5 {[%emt 0:02:39]} 8. Nc3 {[%emt 0:02:21]} b6 {[%emt 0:00:19]} 9. Bb2 {[%emt 0:04:32]} Bb7 {[%emt 0:00:42]} 10. Rc1 {[%emt 0:08:51]} Ne4 {[%emt 0:11:02]} 11. e3 {[%emt 0:11:53]} f5 {[%emt 0:28:33.10]} 12. Nb5 {[%emt 0:04:57.10]} Be7 {[%emt 0:03:59]} 13. Ne1 {[%emt 0:05:53]} a4 {[%emt 0:05:49]} 14. Nd3 {[%emt 0:09:17]} a3 {[%emt 0:01:27]} 15. Ba1 {[%emt 0:04:05]} Qd7 {[%emt 0:03:01]} 16. f3 {[%emt 0:08:55]} Nd6 {[%emt 0:02:28]} 17. Nxd6 {[%emt 0:01:39]} Bxd6 {[%emt 0:03:00]} 18. c5 {[%emt 0:07:37]} Be7 {[%emt 0:01:24]} 19. Rf2 {[%emt 0:00:50]} Ba6 {[%emt 0:01:48]} 20. Bf1 {[%emt 0:00:43]} Bxd3 {[%emt 0:08:12]} 21. Bxd3 {[%emt 0:00:25]} bxc5 {[%emt 0:00:25]} 22. Bb5 {[%emt 0:04:04]} Rfb8 {[%emt 0:03:09]} 23. Bxc6 {[%emt 0:01:23]} Qxc6 {[%emt 0:00:03]} 24. dxc5 {[%emt 0:00:15]} Rb5 {[%emt 0:06:23]} 25. Rfc2 {[%emt 0:02:36]} Bf6 {[%emt 0:01:36]} 26. Bxf6 {[%emt 0:01:15]} gxf6 {[%emt 0:01:08]} 27. Qd4 {[%emt 0:00:18]} Kg7 {[%emt 0:02:40]} 28. Rg2 {[%emt 0:06:24]} e5 {[%emt 0:02:20]} 29. Qd3 {[%emt 0:02:40]} Rxc5 {[%emt 0:01:03]} 30. Rxc5 {[%emt 0:00:55]} Qxc5 {[%emt 0:00:02]} 31. Rc2 {[%emt 0:00:06]} Qd6 {[%emt 0:01:51]} 32. Qxf5 {[%emt 0:00:10]} c5 {[%emt 0:00:03]} 33. g4 {[%emt 0:01:17]} Kh8 {[%emt 0:00:52]} 34. Kg2 {[%emt 0:02:43]} Rd8 {[%emt 0:01:05]} 35. h4 {[%emt 0:00:49]} d4 {[%emt 0:00:35]} 36. exd4 {[%emt 0:00:29]} cxd4 {[%emt 0:00:31]} 37. Qe4 {[%emt 0:02:47]} Qd7 {[%emt 0:00:46]} 38. Kf2 {[%emt 0:01:33]} Qd6 {[%emt 0:00:58]} 39. Qc6 {[%emt 0:01:35]} Qe7 {[%emt 0:00:22]} 40. Qc7 {[%emt 0:00:36]} Rd7 {[%emt 0:00:17]} 41. Qc5 {[%emt 0:00:28]} Qf7 {[%emt 0:00:47]} 42. Qc4 {[%emt 0:00:38]} Qe7 {[%emt 0:00:48]} 43. Qc5 {[%emt 0:00:08]} Qe8 {[%emt 0:00:32]} 44. Qc8 {[%emt 0:00:37]} Rd8 {[%emt 0:00:24]} 45. Qf5 {[%emt 0:00:37]} Qe7 {[%emt 0:00:11]} 46. Qe4 {[%emt 0:00:35]} d3 {[%emt 0:00:38]} 47. Rd2 {[%emt 0:00:17]} Qc5+ {[%emt 0:00:21]} 48. Kg2 {[%emt 0:00:54]} Qc3 {[%emt 0:00:37]} 49. Qe3 {[%emt 0:00:14]} Kg8 {[%emt 0:00:53]} 50. h5 {[%emt 0:00:27]} Qc6 {[%emt 0:00:31]} 51. Kg3 {[%emt 0:00:40]} Qd5 {[%emt 0:00:15]} 52. Qe4 {[%emt 0:00:34]} Qd6 {[%emt 0:00:41]} 53. h6 {[%emt 0:00:59]} Qd7 {[%emt 0:00:34]} 54. b4 {[%emt 0:00:32]} Qa7 {[%emt 0:00:29]} 55. Qc4+ {[%emt 0:00:29]} Kf8 {[%emt 0:00:33]} 56. Qc5+ {[%emt 0:00:51]} Qxc5 {[%emt 0:00:25]} 57. bxc5 {[%emt 0:00:01]} Kf7 {[%emt 0:00:32]} 58. Kf2 {[%emt 0:00:09]} Kg6 {[%emt 0:00:32]} 59. Ke3 {[%emt 0:00:12]} Rc8 {[%emt 0:00:28]} 60. Rxd3 {[%emt 0:00:17]} Rxc5 {[%emt 0:00:06]} 61. Rxa3 {[%emt 0:00:07]} Kxh6 {[%emt 0:00:16]} 62. Ra7 {[%emt 0:00:44]} Kg6 {[%emt 0:00:31]} 63. a4 {[%emt 0:00:44]} h5 {[%emt 0:00:59]} 64. gxh5+ {[%emt 0:00:15]} Kxh5 {[%emt 0:00:08]} 65. f4 {[%emt 0:01:14]} exf4+ {[%emt 0:00:34]} 1/2-1/2

[Event "CAN-op"]
[Site "Ottawa CAN"]
[Date "2026.07.16"]
[Round "8.7"]
[White "Yang, Jingyun (Ryan)"]
[Black "Sambuev, Bator"]
[Result "0-1"]
[ECO "C25"]
[WhiteElo "2295"]
[BlackElo "2420"]
[WhiteFideId "-1"]
[BlackFideId "-1"]
[PlyCount "96"]
[GameId "2332995607367450"]
[EventDate "2026.07.11"]
[EventType "swiss"]
[EventRounds "9"]
[EventCountry "CAN"]
[TimeControl "5400+30"]
[WhiteClock "0:05:58"]
[BlackClock "0:14:39"]

1. e4 {[%emt 0:02:36.94]} e5 {[%emt 0:00:08.94]} 2. Nc3 {[%emt 0:02:25]} Nc6 {[%emt 0:00:36]} 3. g3 {[%emt 0:00:29]} Bc5 {[%emt 0:00:16]} 4. Bg2 {[%emt 0:00:04]} a6 {[%emt 0:00:10]} 5. d3 {[%emt 0:00:22]} d6 {[%emt 0:00:14]} 6. Nge2 {[%emt 0:02:50]} Be6 {[%emt 0:00:54]} 7. Nd5 {[%emt 0:06:17]} h5 {[%emt 0:01:45]} 8. h4 {[%emt 0:06:29]} Nce7 {[%emt 0:00:44]} 9. d4 {[%emt 0:06:28]} Ba7 {[%emt 0:04:13]} 10. O-O {[%emt 0:10:15.10]} c6 {[%emt 0:05:16]} 11. Ne3 {[%emt 0:04:59]} Nh6 {[%emt 0:00:52]} 12. b3 {[%emt 0:02:53]} Qc7 {[%emt 0:03:43]} 13. c4 {[%emt 0:06:32]} f6 {[%emt 0:02:48]} 14. d5 {[%emt 0:07:10]} Bg4 {[%emt 0:07:43]} 15. dxc6 {[%emt 0:02:23]} bxc6 {[%emt 0:00:21]} 16. Qd3 {[%emt 0:02:06]} Rd8 {[%emt 0:07:18]} 17. Nxg4 {[%emt 0:04:18]} Nxg4 {[%emt 0:02:44.10]} 18. Bh3 {[%emt 0:03:07]} d5 {[%emt 0:05:32]} 19. cxd5 {[%emt 0:02:10]} cxd5 {[%emt 0:02:54]} 20. Ba3 {[%emt 0:05:32]} dxe4 {[%emt 0:04:28]} 21. Qxe4 {[%emt 0:01:42]} f5 {[%emt 0:04:37]} 22. Qa4+ {[%emt 0:00:05]} Qc6 {[%emt 0:00:21]} 23. Qxc6+ {[%emt 0:00:15]} Nxc6 {[%emt 0:00:06]} 24. Rac1 {[%emt 0:00:01]} Rh6 {[%emt 0:00:23]} 25. Rc2 {[%emt 0:05:28]} a5 {[%emt 0:04:45]} 26. Kg2 {[%emt 0:02:54]} Nb4 {[%emt 0:04:11]} 27. Rc7 {[%emt 0:00:35]} Rd7 {[%emt 0:03:08]} 28. Rc8+ {[%emt 0:00:05]} Kf7 {[%emt 0:02:38]} 29. Rfc1 {[%emt 0:02:28]} Rhd6 {[%emt 0:01:05]} 30. Rh8 {[%emt 0:03:39]} Nh6 {[%emt 0:10:07]} 31. Rcc8 {[%emt 0:05:12]} Rd2 {[%emt 0:03:56]} 32. Rcf8+ {[%emt 0:01:11]} Kg6 {[%emt 0:01:59]} 33. Bxf5+ {[%emt 0:02:47]} Nxf5 {[%emt 0:00:36]} 34. g4 {[%emt 0:00:01]} hxg4 {[%emt 0:01:40]} 35. Bc1 {[%emt 0:00:16]} Ne3+ {[%emt 0:02:41]} 36. Kg3 {[%emt 0:00:13]} Rxe2 {[%emt 0:00:50]} 37. h5+ {[%emt 0:00:37]} Kg5 {[%emt 0:00:05]} 38. h6 {[%emt 0:00:02]} Re1 {[%emt 0:02:01]} 39. Bxe3+ {[%emt 0:00:15]} Bxe3 {[%emt 0:00:06]} 40. fxe3 {[%emt 0:00:04]} Rxe3+ {[%emt 0:01:00]} 41. Kf2 {[%emt 0:00:02]} Rf3+ {[%emt 0:00:08]} 42. Rxf3 {[%emt 0:00:05]} gxf3 {[%emt 0:00:04]} 43. h7 {[%emt 0:00:05]} Kg6 {[%emt 0:00:09]} 44. a3 {[%emt 0:00:10]} Nd5 {[%emt 0:00:08]} 45. Kxf3 {[%emt 0:00:05]} Nf6 {[%emt 0:00:06]} 46. b4 {[%emt 0:00:39]} axb4 {[%emt 0:00:05]} 47. axb4 {[%emt 0:00:02]} Nxh7 {[%emt 0:00:06]} 48. Re8 {[%emt 0:00:08]} Kf5 {[%emt 0:00:10]} 0-1

[Event "CAN-op"]
[Site "Ottawa CAN"]
[Date "2026.07.16"]
[Round "8.8"]
[White "Chiku-Ratte, Olivier-Kenta"]
[Black "Pham, Bich Ngoc"]
[Result "0-1"]
[ECO "D37"]
[WhiteElo "2354"]
[BlackElo "2203"]
[WhiteFideId "-1"]
[BlackFideId "-1"]
[PlyCount "126"]
[GameId "2332995607371547"]
[EventDate "2026.07.11"]
[EventType "swiss"]
[EventRounds "9"]
[EventCountry "CAN"]
[TimeControl "5400+30"]
[WhiteClock "0:00:33"]
[BlackClock "0:05:45"]

1. d4 {[%emt 0:01:00.94]} d5 {[%emt 0:00:12.94]} 2. c4 {[%emt 0:00:06]} e6 {[%emt 0:00:06]} 3. Nf3 {[%emt 0:01:07]} Nf6 {[%emt 0:00:11]} 4. Nc3 {[%emt 0:00:04]} Be7 {[%emt 0:00:27]} 5. Bf4 {[%emt 0:00:27]} O-O {[%emt 0:00:23]} 6. e3 {[%emt 0:00:04]} c5 {[%emt 0:00:17]} 7. dxc5 {[%emt 0:01:27]} Bxc5 {[%emt 0:00:10]} 8. a3 {[%emt 0:00:05]} Nc6 {[%emt 0:00:21]} 9. Qc2 {[%emt 0:00:23]} Re8 {[%emt 0:00:21]} 10. b4 {[%emt 0:02:47]} Bf8 {[%emt 0:08:13]} 11. Bg3 {[%emt 0:07:30]} e5 {[%emt 0:14:37]} 12. Nxd5 {[%emt 0:17:26]} Nxd5 {[%emt 0:21:13.10]} 13. cxd5 {[%emt 0:00:23]} Nxb4 {[%emt 0:04:30]} 14. axb4 {[%emt 0:19:13.10]} Bxb4+ {[%emt 0:02:25]} 15. Nd2 {[%emt 0:02:49]} Qxd5 {[%emt 0:00:53]} 16. Qa2 {[%emt 0:14:24]} Rd8 {[%emt 0:24:55]} 17. Qxd5 {[%emt 0:07:53]} Rxd5 {[%emt 0:00:07]} 18. Bc4 {[%emt 0:00:22]} Bxd2+ {[%emt 0:04:20]} 19. Ke2 {[%emt 0:00:40]} Rc5 {[%emt 0:00:28]} 20. Bxf7+ {[%emt 0:01:51]} Kxf7 {[%emt 0:00:07]} 21. Kxd2 {[%emt 0:00:02]} Rd5+ {[%emt 0:02:47]} 22. Ke2 {[%emt 0:03:20]} e4 {[%emt 0:05:00]} 23. Rhc1 {[%emt 0:02:08]} Bg4+ {[%emt 0:02:45]} 24. f3 {[%emt 0:00:21]} exf3+ {[%emt 0:00:08]} 25. gxf3 {[%emt 0:00:02]} Be6 {[%emt 0:00:13]} 26. Rab1 {[%emt 0:10:23]} Rd7 {[%emt 0:01:42]} 27. Bc7 {[%emt 0:01:44]} Bd5 {[%emt 0:00:31]} 28. e4 {[%emt 0:02:06]} Bc6 {[%emt 0:00:01]} 29. Ba5 {[%emt 0:00:02]} Re8 {[%emt 0:01:11]} 30. Rc5 {[%emt 0:01:41]} g6 {[%emt 0:00:05]} 31. h4 {[%emt 0:00:06]} Bxe4 {[%emt 0:01:49]} 32. fxe4 {[%emt 0:00:03]} b6 {[%emt 0:00:29]} 33. Rc4 {[%emt 0:01:17]} bxa5 {[%emt 0:00:07]} 34. Rb5 {[%emt 0:00:03]} Re6 {[%emt 0:03:28]} 35. Rxa5 {[%emt 0:00:03]} Rb6 {[%emt 0:00:17]} 36. Rca4 {[%emt 0:01:19]} Rbb7 {[%emt 0:00:19]} 37. Ke3 {[%emt 0:00:18]} h6 {[%emt 0:00:15]} 38. Ra6 {[%emt 0:00:36]} Kg7 {[%emt 0:00:46]} 39. Re6 {[%emt 0:02:12]} Rb3+ {[%emt 0:00:13]} 40. Kf4 {[%emt 0:00:13]} Rf7+ {[%emt 0:00:19]} 41. Ke5 {[%emt 0:00:01]} Rb5+ {[%emt 0:00:13]} 42. Kd4 {[%emt 0:00:11]} a5 {[%emt 0:00:58]} 43. Ra6 {[%emt 0:00:46]} Rh5 {[%emt 0:00:52]} 44. R4xa5 {[%emt 0:00:31]} Rxh4 {[%emt 0:00:05]} 45. Ra7 {[%emt 0:00:05]} Rh1 {[%emt 0:00:44]} 46. Rxf7+ {[%emt 0:01:34]} Kxf7 {[%emt 0:00:01]} 47. Ra6 {[%emt 0:00:09]} h5 {[%emt 0:00:55]} 48. Ke5 {[%emt 0:00:29]} Kg7 {[%emt 0:00:05]} 49. Kf4 {[%emt 0:01:54]} Rf1+ {[%emt 0:00:07]} 50. Kg3 {[%emt 0:00:14]} Rg1+ {[%emt 0:00:21]} 51. Kf2 {[%emt 0:01:10]} Rg5 {[%emt 0:00:06]} 52. Kf3 {[%emt 0:00:11]} h4 {[%emt 0:00:35]} 53. Ra7+ {[%emt 0:01:06]} Kh6 {[%emt 0:00:12]} 54. Ra8 {[%emt 0:00:22]} Rg3+ {[%emt 0:00:21]} 55. Kf4 {[%emt 0:00:41]} g5+ {[%emt 0:00:19]} 56. Ke5 {[%emt 0:00:26]} Kh5 {[%emt 0:01:04]} 57. Kd4 {[%emt 0:00:26]} h3 {[%emt 0:00:24]} 58. e5 {[%emt 0:00:04]} Rg1 {[%emt 0:00:41]} 59. Rh8+ {[%emt 0:01:05]} Kg4 {[%emt 0:00:06]} 60. e6 {[%emt 0:00:32]} Re1 {[%emt 0:00:20]} 61. Rh6 {[%emt 0:00:26]} Kg3 {[%emt 0:00:14]} 62. Rh5 {[%emt 0:00:27]} g4 {[%emt 0:00:19]} 63. Kd5 {[%emt 0:00:36]} h2 {[%emt 0:00:31]} 0-1

[Event "CAN-op"]
[Site "Ottawa CAN"]
[Date "2026.07.17"]
[Round "9.1"]
[White "Jaferian, Koosha"]
[Black "Rodrigue-Lemieux, Shawn"]
[Result "1/2-1/2"]
[ECO "B97"]
[WhiteElo "2249"]
[BlackElo "2534"]
[WhiteFideId "-1"]
[BlackFideId "-1"]
[PlyCount "39"]
[GameId "2332995607392057"]
[EventDate "2026.07.11"]
[EventType "swiss"]
[EventRounds "9"]
[EventCountry "CAN"]
[TimeControl "5400+30"]
[WhiteClock "1:28:23"]
[BlackClock "1:29:09"]

1. e4 {[%emt 0:00:03.94]} c5 {[%emt 0:00:08.94]} 2. Nf3 {[%emt 0:00:10]} d6 {[%emt 0:00:39]} 3. d4 {[%emt 0:00:09]} cxd4 {[%emt 0:00:08]} 4. Nxd4 {[%emt 0:00:06]} Nf6 {[%emt 0:00:11]} 5. Nc3 {[%emt 0:00:06]} a6 {[%emt 0:00:19]} 6. Bg5 {[%emt 0:01:19]} e6 {[%emt 0:00:30]} 7. f4 {[%emt 0:00:05]} Qb6 {[%emt 0:00:28]} 8. Qd2 {[%emt 0:00:56]} Qxb2 {[%emt 0:02:14]} 9. Rb1 {[%emt 0:00:07]} Qa3 {[%emt 0:00:10]} 10. f5 {[%emt 0:00:06]} Nc6 {[%emt 0:01:49]} 11. fxe6 {[%emt 0:02:51]} fxe6 {[%emt 0:01:15]} 12. Nxc6 {[%emt 0:01:09]} bxc6 {[%emt 0:00:11]} 13. Be2 {[%emt 0:00:05]} Be7 {[%emt 0:00:27]} 14. O-O {[%emt 0:00:42]} O-O {[%emt 0:00:30]} 15. Rb3 {[%emt 0:01:59]} Qc5+ {[%emt 0:00:49]} 16. Be3 {[%emt 0:00:09]} Qe5 {[%emt 0:00:27]} 17. Bf4 {[%emt 0:00:42]} Qc5+ {[%emt 0:00:13]} 18. Be3 {[%emt 0:01:11]} Qe5 {[%emt 0:00:12]} 19. Bf4 {[%emt 0:00:06]} Qc5+ {[%emt 0:00:10]} 20. Be3 {[%emt 0:00:05]} 1/2-1/2

[Event "CAN-op"]
[Site "Ottawa CAN"]
[Date "2026.07.17"]
[Round "9.2"]
[White "Stremavicius, Titas"]
[Black "Preotu, Razvan"]
[Result "1-0"]
[ECO "E90"]
[WhiteElo "2555"]
[BlackElo "2482"]
[WhiteFideId "-1"]
[BlackFideId "-1"]
[PlyCount "61"]
[GameId "2332995607392058"]
[EventDate "2026.07.11"]
[EventType "swiss"]
[EventRounds "9"]
[EventCountry "CAN"]
[TimeControl "5400+30"]
[WhiteClock "0:02:55"]
[BlackClock "0:01:44"]

1. c4 {[%emt 0:00:01.94]} Nf6 {[%emt 0:04:19.94]} 2. Nf3 {[%emt 0:02:46]} g6 {[%emt 0:00:14]} 3. Nc3 {[%emt 0:00:08]} Bg7 {[%emt 0:00:16]} 4. e4 {[%emt 0:00:12]} d6 {[%emt 0:00:04]} 5. d4 {[%emt 0:00:07]} O-O {[%emt 0:00:05]} 6. Bd3 {[%emt 0:00:35]} Bg4 {[%emt 0:00:24]} 7. Be2 {[%emt 0:00:09]} Bxf3 {[%emt 0:00:08]} 8. Bxf3 {[%emt 0:00:15]} Nfd7 {[%emt 0:00:21]} 9. h4 {[%emt 0:06:30]} Nc6 {[%emt 0:03:12]} 10. Be3 {[%emt 0:00:15]} e5 {[%emt 0:00:16]} 11. d5 {[%emt 0:00:10]} Nd4 {[%emt 0:00:08]} 12. h5 {[%emt 0:00:07]} c5 {[%emt 0:00:28]} 13. hxg6 {[%emt 0:01:20]} hxg6 {[%emt 0:00:20]} 14. Qd2 {[%emt 0:19:16]} Qa5 {[%emt 0:10:51]} 15. Rc1 {[%emt 0:15:30.10]} a6 {[%emt 0:19:13.10]} 16. Bh6 {[%emt 0:19:16]} b5 {[%emt 0:00:40]} 17. Bg4 {[%emt 0:03:55]} Qd8 {[%emt 0:14:08]} 18. Bxg7 {[%emt 0:02:08]} Kxg7 {[%emt 0:00:05]} 19. Qh6+ {[%emt 0:00:09]} Kf6 {[%emt 0:00:01]} 20. Bxd7 {[%emt 0:06:20]} Qxd7 {[%emt 0:01:09]} 21. f4 {[%emt 0:00:02]} Qg4 {[%emt 0:06:18]} 22. fxe5+ {[%emt 0:11:00]} dxe5 {[%emt 0:00:06]} 23. O-O+ {[%emt 0:00:10]} Ke7 {[%emt 0:00:04]} 24. Qg7 {[%emt 0:06:48]} Qg5 {[%emt 0:01:56]} 25. d6+ {[%emt 0:00:03]} Ke6 {[%emt 0:26:36]} 26. Rce1 {[%emt 0:00:03]} Rae8 {[%emt 0:00:51]} 27. Nd5 {[%emt 0:00:43]} Kxd6 {[%emt 0:00:06]} 28. Rf6+ {[%emt 0:03:45]} Ne6 {[%emt 0:00:07]} 29. Rd1 {[%emt 0:00:09]} Rd8 {[%emt 0:06:54]} 30. b3 {[%emt 0:02:08]} Qh4 {[%emt 0:03:14]} 31. Rxe6+ {[%emt 0:00:15]} 1-0

[Event "CAN-op"]
[Site "Ottawa CAN"]
[Date "2026.07.17"]
[Round "9.3"]
[White "Sambuev, Bator"]
[Black "Golubka, Petro"]
[Result "1-0"]
[ECO "E51"]
[WhiteElo "2420"]
[BlackElo "2355"]
[WhiteFideId "-1"]
[BlackFideId "-1"]
[PlyCount "83"]
[GameId "2332995607396155"]
[EventDate "2026.07.11"]
[EventType "swiss"]
[EventRounds "9"]
[EventCountry "CAN"]
[TimeControl "5400+30"]
[WhiteClock "0:08:22"]
[BlackClock "0:03:59"]

1. d4 {[%emt 0:01:04.94]} Nf6 {[%emt 0:00:36.94]} 2. c4 {[%emt 0:00:04]} e6 {[%emt 0:00:07]} 3. Nc3 {[%emt 0:00:03]} Bb4 {[%emt 0:00:12]} 4. e3 {[%emt 0:00:03]} O-O {[%emt 0:00:14]} 5. Bd3 {[%emt 0:00:03]} d5 {[%emt 0:00:25]} 6. Nf3 {[%emt 0:00:04]} dxc4 {[%emt 0:00:59]} 7. Bxc4 {[%emt 0:00:06]} b6 {[%emt 0:00:05]} 8. O-O {[%emt 0:01:42]} Bb7 {[%emt 0:00:08]} 9. Qe2 {[%emt 0:02:01]} Nbd7 {[%emt 0:00:16]} 10. a3 {[%emt 0:02:08]} Bd6 {[%emt 0:00:25]} 11. e4 {[%emt 0:03:51]} c5 {[%emt 0:00:03]} 12. dxc5 {[%emt 0:02:17]} bxc5 {[%emt 0:00:17]} 13. Bg5 {[%emt 0:02:52]} Qb8 {[%emt 0:01:15]} 14. Rad1 {[%emt 0:00:54]} Bc7 {[%emt 0:04:52]} 15. Kh1 {[%emt 0:05:56]} h6 {[%emt 0:14:12]} 16. Bh4 {[%emt 0:01:42]} a6 {[%emt 0:04:37]} 17. Rd3 {[%emt 0:26:58.10]} Bc6 {[%emt 0:02:15]} 18. Ba2 {[%emt 0:10:55]} Bb5 {[%emt 0:11:23.10]} 19. Nxb5 {[%emt 0:00:24]} axb5 {[%emt 0:00:21]} 20. Bxf6 {[%emt 0:05:16]} Nxf6 {[%emt 0:00:10]} 21. e5 {[%emt 0:00:10]} Ng4 {[%emt 0:04:01]} 22. Re1 {[%emt 0:02:22]} Ra4 {[%emt 0:16:57]} 23. Rd2 {[%emt 0:03:54]} Rd8 {[%emt 0:08:17]} 24. Rxd8+ {[%emt 0:04:27]} Qxd8 {[%emt 0:03:07]} 25. h3 {[%emt 0:02:37]} Re4 {[%emt 0:04:15]} 26. Qf1 {[%emt 0:01:02]} Rxe1 {[%emt 0:00:24]} 27. Qxe1 {[%emt 0:00:04]} Ba5 {[%emt 0:00:23]} 28. b4 {[%emt 0:04:43]} cxb4 {[%emt 0:01:36]} 29. axb4 {[%emt 0:00:04]} Nxf2+ {[%emt 0:04:14]} 30. Qxf2 {[%emt 0:00:22]} Bxb4 {[%emt 0:00:08]} 31. Qb2 {[%emt 0:01:33]} Qa5 {[%emt 0:00:23]} 32. Bb3 {[%emt 0:04:07]} Bc3 {[%emt 0:05:00]} 33. Qa2 {[%emt 0:00:12]} Qd8 {[%emt 0:01:15]} 34. Bc2 {[%emt 0:01:58]} Qb8 {[%emt 0:07:21]} 35. Qa6 {[%emt 0:00:39]} b4 {[%emt 0:00:58]} 36. Qc6 {[%emt 0:01:11]} Kf8 {[%emt 0:03:23]} 37. Qd7 {[%emt 0:02:05]} Kg8 {[%emt 0:00:25]} 38. Qc6 {[%emt 0:01:31]} g6 {[%emt 0:01:49]} 39. Bxg6 {[%emt 0:00:48]} fxg6 {[%emt 0:00:02]} 40. Qxe6+ {[%emt 0:00:05]} Kh7 {[%emt 0:00:09]} 41. Qf7+ {[%emt 0:00:07]} Kh8 {[%emt 0:00:01]} 42. Nh4 {[%emt 0:00:43]} 1-0

[Event "CAN-op"]
[Site "Ottawa CAN"]
[Date "2026.07.17"]
[Round "9.4"]
[White "Marchand, Calix"]
[Black "Noritsyn, Nikolay"]
[Result "1-0"]
[ECO "B22"]
[WhiteElo "2181"]
[BlackElo "2458"]
[WhiteFideId "-1"]
[BlackFideId "-1"]
[PlyCount "123"]
[GameId "2332995607400252"]
[EventDate "2026.07.11"]
[EventType "swiss"]
[EventRounds "9"]
[EventCountry "CAN"]
[TimeControl "5400+30"]
[WhiteClock "0:00:56"]
[BlackClock "0:05:21"]

1. e4 {[%emt 0:00:33.94]} c5 {[%emt 0:00:09.94]} 2. c3 {[%emt 0:00:44]} Nf6 {[%emt 0:00:13]} 3. e5 {[%emt 0:00:08]} Nd5 {[%emt 0:00:04]} 4. Nf3 {[%emt 0:00:40]} d6 {[%emt 0:00:18]} 5. Bc4 {[%emt 0:00:51]} Nb6 {[%emt 0:00:25]} 6. e6 {[%emt 0:00:16]} Nxc4 {[%emt 0:01:08]} 7. Qa4+ {[%emt 0:00:11]} Nc6 {[%emt 0:00:06]} 8. exf7+ {[%emt 0:00:09]} Kxf7 {[%emt 0:00:08]} 9. Qxc4+ {[%emt 0:00:59]} d5 {[%emt 0:00:46]} 10. Qf4+ {[%emt 0:00:25]} Kg8 {[%emt 0:00:38]} 11. d4 {[%emt 0:00:21]} h6 {[%emt 0:01:55]} 12. O-O {[%emt 0:03:52]} g5 {[%emt 0:03:20]} 13. Qg3 {[%emt 0:00:19]} Bg7 {[%emt 0:01:15]} 14. dxc5 {[%emt 0:00:15]} e5 {[%emt 0:01:26]} 15. Na3 {[%emt 0:01:23]} b6 {[%emt 0:03:26]} 16. Be3 {[%emt 0:11:27]} Ne7 {[%emt 0:09:52]} 17. h3 {[%emt 0:01:41]} Nf5 {[%emt 0:01:40]} 18. Qh2 {[%emt 0:00:07]} Qe8 {[%emt 0:16:29.10]} 19. cxb6 {[%emt 0:13:31]} axb6 {[%emt 0:04:54]} 20. Rfe1 {[%emt 0:14:21.10]} e4 {[%emt 0:08:19]} 21. Nd4 {[%emt 0:02:32]} Be5 {[%emt 0:00:37]} 22. g3 {[%emt 0:02:45]} Nxe3 {[%emt 0:06:26]} 23. Rxe3 {[%emt 0:01:31]} h5 {[%emt 0:07:33]} 24. Qg2 {[%emt 0:08:16]} g4 {[%emt 0:02:29]} 25. h4 {[%emt 0:01:07]} Rh7 {[%emt 0:02:13]} 26. Qf1 {[%emt 0:02:48]} Ba6 {[%emt 0:01:48]} 27. Qe1 {[%emt 0:05:40]} Qg6 {[%emt 0:03:11]} 28. Nac2 {[%emt 0:06:39]} Rf8 {[%emt 0:01:32]} 29. Rd1 {[%emt 0:06:18]} Rhf7 {[%emt 0:00:16]} 30. Rd2 {[%emt 0:00:23]} Bg7 {[%emt 0:04:35]} 31. Nb4 {[%emt 0:02:23]} Bb7 {[%emt 0:00:03]} 32. Ree2 {[%emt 0:07:03]} Bh6 {[%emt 0:00:24]} 33. Rc2 {[%emt 0:03:05]} Qd6 {[%emt 0:00:53]} 34. a3 {[%emt 0:02:34]} Rf6 {[%emt 0:01:45]} 35. Re3 {[%emt 0:01:26]} R8f7 {[%emt 0:00:36]} 36. Rd2 {[%emt 0:00:32]} Qc7 {[%emt 0:01:59]} 37. Rc2 {[%emt 0:00:41]} Kh7 {[%emt 0:00:51]} 38. Ree2 {[%emt 0:00:34]} Qc8 {[%emt 0:01:29]} 39. Re3 {[%emt 0:00:33]} Rf3 {[%emt 0:01:10]} 40. Rce2 {[%emt 0:00:51]} R7f6 {[%emt 0:02:53]} 41. Qd2 {[%emt 0:00:30]} Qf8 {[%emt 0:02:01]} 42. Nxf3 {[%emt 0:00:30]} gxf3 {[%emt 0:00:06]} 43. Re1 {[%emt 0:00:22]} Qg8 {[%emt 0:01:59]} 44. Kh2 {[%emt 0:00:36]} Bf4 {[%emt 0:01:27]} 45. Qd4 {[%emt 0:00:28]} Rg6 {[%emt 0:00:58]} 46. Rxf3 {[%emt 0:00:10]} Bd6 {[%emt 0:01:06]} 47. Rf5 {[%emt 0:00:51]} Rxg3 {[%emt 0:03:00]} 48. Rxh5+ {[%emt 0:00:05]} Kg6 {[%emt 0:00:02]} 49. fxg3 {[%emt 0:00:44]} Kxh5 {[%emt 0:00:08]} 50. Qd1+ {[%emt 0:00:43]} Kh6 {[%emt 0:00:07]} 51. Qd2+ {[%emt 0:00:19]} Kh5 {[%emt 0:00:13]} 52. Qd1+ {[%emt 0:00:42]} Kh6 {[%emt 0:00:04]} 53. Qc1+ {[%emt 0:00:31]} Kh5 {[%emt 0:00:04]} 54. Qg5+ {[%emt 0:00:28]} Qxg5 {[%emt 0:00:04]} 55. hxg5 {[%emt 0:00:03]} Kxg5 {[%emt 0:00:07]} 56. Nxd5 {[%emt 0:00:55]} Kg4 {[%emt 0:02:04]} 57. Rxe4+ {[%emt 0:00:29]} Kf3 {[%emt 0:00:08]} 58. Re3+ {[%emt 0:00:31]} Kf2 {[%emt 0:00:05]} 59. Rd3 {[%emt 0:00:30]} Ba6 {[%emt 0:01:42]} 60. Rd2+ {[%emt 0:00:06]} Ke1 {[%emt 0:00:37]} 61. Rd4 {[%emt 0:00:54]} Kf2 {[%emt 0:00:22]} 62. Nf4 {[%emt 0:00:12]} 1-0